[Event "EYCC Girls-U16 2019"]
[Site "Bratislava"]
[Date "2019.08.03"]
[Round "2.1"]
[White "Krasteva, Beloslava"]
[Black "Gombocz, Zsofia"]
[Result "1/2-1/2"]
[ECO "D35"]
[WhiteElo "2327"]
[BlackElo "1981"]
[Annotator "NA"]
[PlyCount "72"]
[EventDate "2019.08.02"]
[EventType "swiss"]
[EventCountry "SVK"]
[SourceTitle "playchess.com"]
[Source "ChessBase"]
[SourceQuality "1"]
[TimeControl "40/5400+30:1800+30"]

1. d4 {[%emt 0:00:00]} d5 {[%emt 0:00:00]} 2. c4 {[%emt 0:00:00]} e6 {[%emt 0:00:00]} 3. Nc3 {[%emt 0:00:04]} Nf6 {[%emt 0:00:00]} 4. cxd5 {[%emt 0:00:17]} exd5 {[%emt 0:00:02]} 5. Bg5 {[%emt 0:00:14]} Be7 {[%emt 0:00:32]} 6. e3 {[%emt 0:00:33]} c6 {[%emt 0:01:19]} 7. Bd3 {[%emt 0:00:45]} h6 {[%emt 0:00:38]} 8. Bh4 {[%emt 0:00:35]} O-O {[%emt 0:02:03]} 9. Qc2 {[%emt 0:01:03]} Re8 {[%emt 0:01:20]} 10. Nge2 {[%emt 0:01:27]} Ne4 {[%emt 0:03:57]} 11. Bxe7 {[%emt 0:02:05]} Qxe7 {[%emt 0:00:11]} 12. Bxe4 {[%emt 0:02:15]} dxe4 {[%emt 0:00:09]} 13. Ng3 {[%emt 0:01:47]} f5 {[%emt 0:03:33]} 14. d5 {[%emt 0:06:34]} Na6 {[%emt 0:06:43]} 15. O-O {[%emt 0:04:28]} Nb4 {[%emt 0:04:18]} 16. Qb3 {[%emt 0:02:01]} Nxd5 {[%emt 0:03:23]} 17. Nxd5 {[%emt 0:00:22]} cxd5 {[%emt 0:00:10]} 18. Qxd5+ {[%emt 0:00:04]} Be6 {[%emt 0:07:31]} 19. Qa5 {[%emt 0:04:47]} b6 {[%emt 0:06:27]} 20. Qa4 {[%emt 0:03:51]} Qd7 {[%emt 0:09:34]} 21. Qb4 {[%emt 0:07:34]} Rac8 {[%emt 0:06:22]} 22. b3 {[%emt 0:06:35]} Rc2 {[%emt 0:03:53]} 23. Rad1 {[%emt 0:06:53]} Qe7 {[%emt 0:05:08]} 24. Qa4 {[%emt 0:02:57]} Rec8 {[%emt 0:04:42]} 25. Nh5 {[%emt 0:12:33]} Qe8 {[%emt 0:05:54]} 26. Qxe8+ {[%emt 0:04:41]} Rxe8 {[%emt 0:00:07]} 27. Ra1 {[%emt 0:00:15]} Rec8 {[%emt 0:04:17]} 28. Nf4 {[%emt 0:02:29]} Bf7 {[%emt 0:02:36]} 29. Rfe1 {[%emt 0:01:50]} Rd8 {[%emt 0:04:42]} 30. Re2 {[%emt 0:02:20]} Rdd2 {[%emt 0:00:37]} 31. Rxd2 {[%emt 0:01:02]} Rxd2 {[%emt 0:00:06]} 32. Kf1 {[%emt 0:00:06]} g5 {[%emt 0:01:20]} 33. Ke1 {[%emt 0:02:11]} Rb2 {[%emt 0:01:38]} 34. Ne2 {[%emt 0:01:06]} Kf8 {[%emt 0:01:16]} 35. g3 {[%emt 0:09:20]} Ke7 {[%emt 0:03:05]} 36. Nd4 {[%emt 0:00:51]} Kf6 {[%emt 0:01:24]} 1/2-1/2

[Event "EYCC Girls-U16 2019"]
[Site "Bratislava"]
[Date "2019.08.03"]
[Round "2.2"]
[White "Getman, Tatyana"]
[Black "Kvendseth, Thyra"]
[Result "1-0"]
[ECO "E90"]
[WhiteElo "2143"]
[BlackElo "1967"]
[Annotator "NA"]
[PlyCount "75"]
[EventDate "2019.08.02"]
[EventType "swiss"]
[EventCountry "SVK"]
[SourceTitle "playchess.com"]
[Source "ChessBase"]
[SourceQuality "1"]
[TimeControl "40/5400+30:1800+30"]

1. d4 {[%emt 0:00:00]} Nf6 {[%emt 0:00:00]} 2. c4 {[%emt 0:00:00]} g6 {[%emt 0:00:00]} 3. Nc3 {[%emt 0:00:00]} Bg7 {[%emt 0:00:00]} 4. e4 {[%emt 0:00:00]} d6 {[%emt 0:00:00]} 5. Nf3 {[%emt 0:00:00]} O-O {[%emt 0:00:00]} 6. h3 {[%emt 0:00:00]} c6 {[%emt 0:00:10]} 7. Be2 {[%emt 0:00:50]} Na6 {[%emt 0:01:25]} 8. Be3 {[%emt 0:01:44]} e5 {[%emt 0:07:11]} 9. d5 {[%emt 0:03:00]} Qc7 {[%emt 0:09:48]} 10. Nd2 {[%emt 0:11:37]} Ne8 {[%emt 0:11:35]} 11. g4 {[%emt 0:01:37]} f5 {[%emt 0:08:09]} 12. gxf5 {[%emt 0:01:37]} gxf5 {[%emt 0:00:58]} 13. exf5 {[%emt 0:00:55]} Bxf5 {[%emt 0:00:37]} 14. dxc6 {[%emt 0:02:37]} bxc6 {[%emt 0:04:13]} 15. Nde4 {[%emt 0:03:15]} Rb8 {[%emt 0:08:49]} 16. Qd2 {[%emt 0:04:35]} Nb4 {[%emt 0:06:46]} 17. a3 {[%emt 0:06:35]} d5 {[%emt 0:04:47]} 18. Bc5 {[%emt 0:06:29]} dxe4 {[%emt 0:01:54]} 19. axb4 {[%emt 0:02:11]} Rf7 {[%emt 0:02:13]} 20. Rxa7 {[%emt 0:02:39]} Rb7 {[%emt 0:00:48]} 21. Rxb7 {[%emt 0:00:26]} Qxb7 {[%emt 0:00:02]} 22. Qd8 {[%emt 0:04:11]} Qd7 {[%emt 0:02:53]} 23. Qxd7 {[%emt 0:00:12]} Rxd7 {[%emt 0:00:08]} 24. Bg4 {[%emt 0:00:35]} Bxg4 {[%emt 0:01:42]} 25. hxg4 {[%emt 0:00:01]} Rd3 {[%emt 0:00:28]} 26. Ke2 {[%emt 0:02:55]} Nc7 {[%emt 0:01:31]} 27. Rd1 {[%emt 0:03:27]} Ne6 {[%emt 0:01:11]} 28. Rxd3 {[%emt 0:01:31]} Nf4+ {[%emt 0:00:06]} 29. Ke3 {[%emt 0:00:12]} exd3 {[%emt 0:02:19]} 30. b5 {[%emt 0:02:47]} cxb5 {[%emt 0:00:37]} 31. cxb5 Bh6 {[%emt 0:02:29]} 32. Ke4 {[%emt 0:01:21]} Kf7 {[%emt 0:05:30]} 33. b6 {[%emt 0:01:58]} Ne6 {[%emt 0:01:10]} 34. Be3 {[%emt 0:00:12]} Bxe3 {[%emt 0:01:22]} 35. Kxe3 {[%emt 0:00:05]} Nc5 {[%emt 0:00:38]} 36. Ne4 {[%emt 0:01:39]} Nb7 {[%emt 0:00:56]} 37. Kxd3 {[%emt 0:00:07]} Ke7 {[%emt 0:00:14]} 38. Kc4 {[%emt 0:00:10]} 1-0

[Event "EYCC Girls-U16 2019"]
[Site "Bratislava"]
[Date "2019.08.03"]
[Round "2.3"]
[White "Laurincova, Kristyna"]
[Black "Waszczuk, Patrycja"]
[Result "0-1"]
[ECO "B90"]
[WhiteElo "2010"]
[BlackElo "2119"]
[Annotator "NA"]
[PlyCount "58"]
[EventDate "2019.08.02"]
[EventType "swiss"]
[EventCountry "SVK"]
[SourceTitle "playchess.com"]
[Source "ChessBase"]
[SourceQuality "1"]
[TimeControl "40/5400+30:1800+30"]

1. e4 {[%emt 0:00:00]} c5 {[%emt 0:00:00]} 2. Nf3 {[%emt 0:00:00]} d6 {[%emt 0:00:00]} 3. d4 {[%emt 0:00:00]} cxd4 {[%emt 0:00:00]} 4. Nxd4 {[%emt 0:00:00]} Nf6 {[%emt 0:00:00]} 5. Nc3 {[%emt 0:00:00]} a6 {[%emt 0:00:02]} 6. h3 {[%emt 0:00:11]} b5 {[%emt 0:02:10]} 7. g4 {[%emt 0:18:36]} Bb7 {[%emt 0:05:15]} 8. Bg2 {[%emt 0:00:12]} e6 {[%emt 0:04:34]} 9. g5 {[%emt 0:04:01]} Nfd7 {[%emt 0:03:11]} 10. Qh5 {[%emt 0:08:55]} g6 {[%emt 0:06:14]} 11. Qg4 {[%emt 0:02:06]} Bg7 {[%emt 0:03:43]} 12. Be3 {[%emt 0:03:32]} Ne5 {[%emt 0:04:05]} 13. Qg3 {[%emt 0:01:24]} Nc4 {[%emt 0:02:09]} 14. O-O-O {[%emt 0:02:38]} b4 {[%emt 0:03:42]} 15. Nce2 {[%emt 0:06:42]} e5 {[%emt 0:01:24]} 16. Nb3 {[%emt 0:00:54]} Qc7 {[%emt 0:01:18]} 17. Nd2 {[%emt 0:05:47]} Nd7 {[%emt 0:03:55]} 18. Kb1 {[%emt 0:04:35]} Rc8 {[%emt 0:03:39]} 19. Ba7 {[%emt 0:07:44]} h6 {[%emt 0:02:41]} 20. Qb3 {[%emt 0:05:55]} Na5 {[%emt 0:14:22]} 21. Qd3 {[%emt 0:03:00]} Bc6 {[%emt 0:02:39]} 22. Qxa6 {[%emt 0:09:29]} Ra8 {[%emt 0:00:18]} 23. Nc4 {[%emt 0:00:26]} Nxc4 {[%emt 0:00:43]} 24. Qxc4 {[%emt 0:00:02]} Rxa7 {[%emt 0:00:13]} 25. Qxb4 {[%emt 0:00:34]} Nc5 {[%emt 0:01:32]} 26. Nc3 {[%emt 0:03:39]} hxg5 {[%emt 0:05:08]} 27. Nb5 {[%emt 0:03:28]} Bxb5 {[%emt 0:00:18]} 28. Qxb5+ {[%emt 0:00:02]} Ke7 {[%emt 0:00:39]} 29. Rd5 {[%emt 0:03:31]} Rb8 {[%emt 0:01:05]} 0-1

[Event "EYCC Girls-U16 2019"]
[Site "Bratislava"]
[Date "2019.08.03"]
[Round "2.4"]
[White "Eizaguerri Floris, Maria"]
[Black "Marcinczyk, Monika"]
[Result "0-1"]
[ECO "B82"]
[WhiteElo "2099"]
[BlackElo "1960"]
[Annotator "NA"]
[PlyCount "76"]
[EventDate "2019.08.02"]
[EventType "swiss"]
[EventCountry "SVK"]
[SourceTitle "playchess.com"]
[Source "ChessBase"]
[SourceQuality "1"]
[TimeControl "40/5400+30:1800+30"]

1. e4 {[%emt 0:00:00]} c5 {[%emt 0:00:00]} 2. Nf3 {[%emt 0:00:00]} e6 {[%emt 0:00:00]} 3. d4 {[%emt 0:00:00]} cxd4 {[%emt 0:00:00]} 4. Nxd4 {[%emt 0:00:00]} Nf6 {[%emt 0:00:07]} 5. Nc3 {[%emt 0:00:00]} d6 {[%emt 0:00:14]} 6. f4 {[%emt 0:00:10]} Nc6 {[%emt 0:00:25]} 7. Be3 {[%emt 0:00:06]} Be7 {[%emt 0:00:37]} 8. Qf3 {[%emt 0:00:17]} e5 {[%emt 0:01:54]} 9. Nxc6 {[%emt 0:00:12]} bxc6 {[%emt 0:00:09]} 10. f5 {[%emt 0:00:08]} d5 {[%emt 0:06:10]} 11. exd5 {[%emt 0:01:21]} cxd5 {[%emt 0:00:57]} 12. O-O-O {[%emt 0:00:33]} e4 {[%emt 0:05:05]} 13. Bb5+ {[%emt 0:06:03]} Bd7 {[%emt 0:01:22]} 14. Qe2 {[%emt 0:04:08]} Rb8 {[%emt 0:10:25]} 15. Bxa7 {[%emt 0:08:49]} Rxb5 {[%emt 0:04:46]} 16. Nxb5 {[%emt 0:00:22]} Qa5 {[%emt 0:00:14]} 17. Nc3 {[%emt 0:16:49]} Qxa7 {[%emt 0:02:12]} 18. Nxd5 {[%emt 0:01:12]} Bxf5 {[%emt 0:07:22]} 19. Nxf6+ {[%emt 0:09:19]} Bxf6 {[%emt 0:02:42]} 20. Rhf1 {[%emt 0:04:44]} Be6 {[%emt 0:09:25]} 21. Qb5+ {[%emt 0:03:49]} Bd7 {[%emt 0:03:19]} 22. Qd5 {[%emt 0:01:36]} e3 {[%emt 0:14:17]} 23. Rf4 {[%emt 0:04:49]} O-O {[%emt 0:07:09]} 24. Qxd7 {[%emt 0:15:16]} Qxa2 {[%emt 0:07:05]} 25. c3 {[%emt 0:00:10]} e2 {[%emt 0:02:42]} 26. Re1 {[%emt 0:02:30]} Qa1+ {[%emt 0:05:38]} 27. Kd2 {[%emt 0:00:06]} Qxb2+ {[%emt 0:00:22]} 28. Ke3 {[%emt 0:00:13]} Bg5 {[%emt 0:02:02]} 29. Qd4 {[%emt 0:05:56]} Re8+ {[%emt 0:02:31]} 30. Kf3 {[%emt 0:01:48]} Bxf4 {[%emt 0:00:45]} 31. Kxf4 {[%emt 0:00:42]} Qb8+ {[%emt 0:01:35]} 32. Kf3 {[%emt 0:01:44]} Qxh2 {[%emt 0:01:03]} 33. Rxe2 {[%emt 0:01:23]} Qh5+ {[%emt 0:00:09]} 34. g4 {[%emt 0:00:04]} Qh3+ {[%emt 0:00:27]} 35. Kf4 {[%emt 0:00:11]} g5+ {[%emt 0:02:02]} 36. Kxg5 {[%emt 0:02:26]} h6+ {[%emt 0:00:11]} 37. Kf4 {[%emt 0:01:35]} Rxe2 {[%emt 0:00:20]} 38. Qd8+ {[%emt 0:00:13]} Kh7 {[%emt 0:00:48]} 0-1

[Event "EYCC Girls-U16 2019"]
[Site "Bratislava"]
[Date "2019.08.03"]
[Round "2.5"]
[White "Hryzlova, Sofiia"]
[Black "Loskutova, Viktoriya"]
[Result "1-0"]
[ECO "A00"]
[WhiteElo "1799"]
[BlackElo "2019"]
[Annotator "NA"]
[PlyCount "135"]
[EventDate "2019.08.02"]
[EventType "swiss"]
[EventCountry "SVK"]
[SourceTitle "playchess.com"]
[Source "ChessBase"]
[SourceQuality "1"]
[TimeControl "40/5400+30:1800+30"]

1. e3 {[%emt 0:00:00]} d5 {[%emt 0:00:26]} 2. b3 {[%emt 0:00:00]} Nf6 {[%emt 0:10:48]} 3. Bb2 {[%emt 0:00:08]} Nbd7 {[%emt 0:01:51]} 4. f4 {[%emt 0:01:25]} g6 {[%emt 0:02:23]} 5. Nf3 {[%emt 0:01:45]} Bg7 {[%emt 0:00:07]} 6. d4 {[%emt 0:02:41]} O-O {[%emt 0:02:11]} 7. Bd3 {[%emt 0:01:57]} c5 {[%emt 0:05:53]} 8. O-O {[%emt 0:08:08]} cxd4 {[%emt 0:16:03]} 9. exd4 {[%emt 0:01:22]} Qc7 {[%emt 0:04:33]} 10. Ne5 {[%emt 0:15:00]} Nxe5 {[%emt 0:11:50]} 11. fxe5 {[%emt 0:01:56]} Nd7 {[%emt 0:08:49]} 12. Nc3 {[%emt 0:08:59]} Nb6 {[%emt 0:08:49]} 13. a4 {[%emt 0:09:59]} Be6 {[%emt 0:06:59]} 14. a5 {[%emt 0:06:06]} Nd7 {[%emt 0:00:05]} 15. Qf3 {[%emt 0:03:44]} Nxe5 {[%emt 0:07:30]} 16. dxe5 {[%emt 0:04:54]} Bxe5 {[%emt 0:00:05]} 17. Nd1 {[%emt 0:00:55]} Bxh2+ {[%emt 0:00:06]} 18. Kh1 {[%emt 0:00:09]} Be5 {[%emt 0:03:06]} 19. Bxe5 {[%emt 0:04:02]} Qxe5 {[%emt 0:00:04]} 20. Ra4 {[%emt 0:00:16]} Rac8 {[%emt 0:02:42]} 21. Qf2 {[%emt 0:02:49]} a6 {[%emt 0:00:59]} 22. Re1 {[%emt 0:01:08]} Qg5 {[%emt 0:01:16]} 23. Qe3 {[%emt 0:03:53]} Qh5+ {[%emt 0:01:45]} 24. Kg1 {[%emt 0:00:07]} Kg7 {[%emt 0:02:46]} 25. Qg3 {[%emt 0:00:36]} d4 {[%emt 0:00:34]} 26. Nf2 {[%emt 0:02:14]} Rfd8 {[%emt 0:00:29]} 27. Qe5+ {[%emt 0:02:05]} Qxe5 {[%emt 0:00:04]} 28. Rxe5 {[%emt 0:00:07]} Kf6 {[%emt 0:01:08]} 29. Re4 {[%emt 0:01:55]} Rc5 {[%emt 0:00:20]} 30. Rh4 {[%emt 0:00:23]} Kg7 {[%emt 0:00:05]} 31. Ne4 {[%emt 0:00:32]} Re5 {[%emt 0:00:11]} 32. Nd2 {[%emt 0:00:39]} Red5 {[%emt 0:01:24]} 33. Nf3 {[%emt 0:01:12]} Bf5 {[%emt 0:00:32]} 34. Rhxd4 {[%emt 0:00:49]} e5 {[%emt 0:00:33]} 35. Rxd5 {[%emt 0:00:30]} Rxd5 {[%emt 0:00:01]} 36. Bxf5 {[%emt 0:00:34]} gxf5 {[%emt 0:00:01]} 37. Rb4 {[%emt 0:01:57]} Rxa5 {[%emt 0:00:20]} 38. Rxb7 {[%emt 0:00:10]} h6 {[%emt 0:00:34]} 39. b4 {[%emt 0:01:02]} Rd5 {[%emt 0:00:56]} 40. c4 {[%emt 0:00:00]} Rd1+ {[%emt 0:00:00]} 41. Kf2 {[%emt 0:01:31]} e4 {[%emt 0:01:30]} 42. Ne1 {[%emt 0:05:23]} f4 {[%emt 0:03:42]} 43. Rb6 {[%emt 0:04:47]} e3+ {[%emt 0:00:28]} 44. Kf1 {[%emt 0:01:06]} h5 {[%emt 0:04:22]} 45. Rxa6 {[%emt 0:03:55]} h4 {[%emt 0:00:45]} 46. Ra3 {[%emt 0:00:44]} Kf6 {[%emt 0:07:41]} 47. Ke2 {[%emt 0:07:51]} Rd2+ {[%emt 0:01:43]} 48. Kf3 {[%emt 0:01:15]} Ke5 {[%emt 0:05:21]} 49. Ra5+ {[%emt 0:07:06]} Kd4 {[%emt 0:00:04]} 50. Kxf4 {[%emt 0:00:17]} Rf2+ {[%emt 0:01:33]} 51. Kg4 {[%emt 0:07:30]} Kxc4 {[%emt 0:00:34]} 52. Kh3 {[%emt 0:01:05]} f5 {[%emt 0:06:50]} 53. Rc5+ {[%emt 0:01:17]} Kd4 {[%emt 0:00:06]} 54. Nf3+ {[%emt 0:00:40]} Ke4 {[%emt 0:00:21]} 55. Rc4+ {[%emt 0:01:30]} Kd3 {[%emt 0:00:23]} 56. Rd4+ {[%emt 0:01:09]} Kc3 {[%emt 0:00:31]} 57. Rd5 {[%emt 0:00:51]} f4 {[%emt 0:02:40]} 58. Re5 {[%emt 0:00:19]} Kxb4 {[%emt 0:01:30]} 59. Re4+ {[%emt 0:00:12]} Kc3 {[%emt 0:00:06]} 60. Rxf4 {[%emt 0:00:10]} Kd3 {[%emt 0:01:00]} 61. Rf8 {[%emt 0:01:06]} e2 {[%emt 0:00:31]} 62. Re8 {[%emt 0:00:16]} Kc3 {[%emt 0:00:16]} 63. Nxh4 {[%emt 0:00:27]} Kd2 {[%emt 0:00:13]} 64. Nf3+ {[%emt 0:00:13]} Kd1 {[%emt 0:00:07]} 65. Kg3 {[%emt 0:00:31]} Rf1 {[%emt 0:00:07]} 66. Re7 {[%emt 0:00:21]} Rh1 {[%emt 0:00:20]} 67. Rd7+ {[%emt 0:00:07]} Kc1 {[%emt 0:00:07]} 68. Kf2 {[%emt 0:00:17]} 1-0

[Event "EYCC Girls-U16 2019"]
[Site "Bratislava"]
[Date "2019.08.03"]
[Round "2.6"]
[White "Malicka, Maria"]
[Black "Adamczyk, Zuzanna"]
[Result "1-0"]
[ECO "B47"]
[WhiteElo "2115"]
[BlackElo "1900"]
[Annotator "NA"]
[PlyCount "89"]
[EventDate "2019.08.02"]
[EventType "swiss"]
[EventCountry "SVK"]
[SourceTitle "playchess.com"]
[Source "ChessBase"]
[SourceQuality "1"]
[TimeControl "40/5400+30:1800+30"]

1. e4 {[%emt 0:00:00]} c5 {[%emt 0:00:00]} 2. Nf3 {[%emt 0:00:00]} e6 {[%emt 0:00:00]} 3. d4 {[%emt 0:00:00]} cxd4 {[%emt 0:00:00]} 4. Nxd4 {[%emt 0:00:00]} Nc6 {[%emt 0:00:10]} 5. Nc3 {[%emt 0:00:00]} Qc7 {[%emt 0:00:40]} 6. Be2 {[%emt 0:00:00]} a6 {[%emt 0:00:11]} 7. O-O {[%emt 0:00:15]} Nf6 {[%emt 0:00:15]} 8. Be3 {[%emt 0:00:10]} Bb4 {[%emt 0:00:27]} 9. Nxc6 {[%emt 0:00:12]} bxc6 {[%emt 0:00:25]} 10. Qd4 {[%emt 0:00:07]} c5 {[%emt 0:00:40]} 11. Qc4 {[%emt 0:00:13]} Bb7 {[%emt 0:00:47]} 12. a3 {[%emt 0:00:21]} d5 {[%emt 0:01:36]} 13. exd5 {[%emt 0:00:20]} exd5 {[%emt 0:01:13]} 14. Qb3 {[%emt 0:00:10]} Bxc3 {[%emt 0:08:46]} 15. Qxc3 {[%emt 0:00:12]} Rc8 {[%emt 0:12:08]} 16. Bg5 {[%emt 0:01:33]} d4 {[%emt 0:02:20]} 17. Qe1 {[%emt 0:09:09]} O-O {[%emt 0:06:47]} 18. Bxf6 {[%emt 0:00:34]} gxf6 {[%emt 0:00:11]} 19. Qd2 {[%emt 0:06:40]} Qe5 {[%emt 0:12:24]} 20. Rfe1 {[%emt 0:18:26]} Qg5 {[%emt 0:04:42]} 21. Qxg5+ {[%emt 0:00:10]} fxg5 {[%emt 0:00:04]} 22. Bc4 {[%emt 0:01:52]} Rfe8 {[%emt 0:01:18]} 23. f3 {[%emt 0:02:52]} Kf8 {[%emt 0:07:10]} 24. Kf2 {[%emt 0:01:01]} Rc7 {[%emt 0:02:43]} 25. Rxe8+ {[%emt 0:04:57]} Kxe8 {[%emt 0:00:16]} 26. Re1+ {[%emt 0:02:36]} Re7 {[%emt 0:00:47]} 27. b4 {[%emt 0:02:21]} cxb4 {[%emt 0:27:00]} 28. axb4 {[%emt 0:00:09]} f6 {[%emt 0:04:17]} 29. Rd1 {[%emt 0:02:00]} Rd7 {[%emt 0:01:34]} 30. b5 {[%emt 0:09:25]} a5 {[%emt 0:03:46]} 31. Ke2 {[%emt 0:02:56]} Bd5 {[%emt 0:01:44]} 32. Bxd5 {[%emt 0:03:51]} Rxd5 {[%emt 0:00:05]} 33. c4 {[%emt 0:00:17]} Rd8 {[%emt 0:00:54]} 34. Kd3 {[%emt 0:01:03]} Kd7 {[%emt 0:00:43]} 35. Ra1 {[%emt 0:00:42]} Ke6 {[%emt 0:00:33]} 36. Rxa5 {[%emt 0:00:40]} Ke5 {[%emt 0:00:38]} 37. b6+ {[%emt 0:01:03]} Kf4 {[%emt 0:00:33]} 38. b7 {[%emt 0:00:47]} Rb8 {[%emt 0:00:36]} 39. Rb5 {[%emt 0:00:04]} h5 {[%emt 0:00:11]} 40. Kxd4 {[%emt 0:00:00]} g4 {[%emt 0:00:00]} 41. fxg4 {[%emt 0:01:18]} hxg4 {[%emt 0:00:51]} 42. c5 {[%emt 0:00:34]} g3 {[%emt 0:01:36]} 43. hxg3+ {[%emt 0:00:25]} Kxg3 {[%emt 0:00:25]} 44. c6 {[%emt 0:00:25]} Ra8 45. Ke4 1-0

[Event "EYCC Girls-U16 2019"]
[Site "Bratislava"]
[Date "2019.08.03"]
[Round "2.7"]
[White "Dvorakova, Olga"]
[Black "Duran, Esma Doga"]
[Result "0-1"]
[ECO "D35"]
[WhiteElo "1763"]
[BlackElo "2096"]
[Annotator "NA"]
[PlyCount "82"]
[EventDate "2019.08.02"]
[EventType "swiss"]
[EventCountry "SVK"]
[SourceTitle "playchess.com"]
[Source "ChessBase"]
[SourceQuality "1"]
[TimeControl "40/5400+30:1800+30"]

1. d4 {[%emt 0:00:00]} Nf6 {[%emt 0:00:00]} 2. c4 {[%emt 0:00:00]} e6 {[%emt 0:00:37]} 3. Nc3 {[%emt 0:00:00]} d5 {[%emt 0:01:36]} 4. cxd5 {[%emt 0:00:33]} exd5 {[%emt 0:00:02]} 5. Bg5 {[%emt 0:00:44]} Be7 {[%emt 0:00:11]} 6. e3 {[%emt 0:01:09]} c6 {[%emt 0:01:02]} 7. Qc2 {[%emt 0:02:15]} Nbd7 {[%emt 0:00:19]} 8. Bd3 {[%emt 0:00:57]} O-O {[%emt 0:05:48]} 9. Nf3 {[%emt 0:00:18]} Re8 {[%emt 0:00:09]} 10. O-O {[%emt 0:00:38]} Nf8 {[%emt 0:02:06]} 11. h3 {[%emt 0:00:58]} g6 {[%emt 0:04:09]} 12. Rab1 {[%emt 0:13:26]} a5 {[%emt 0:07:03]} 13. a3 {[%emt 0:10:14]} Ne6 {[%emt 0:04:17]} 14. Bh4 {[%emt 0:04:40]} Ng7 {[%emt 0:10:33]} 15. b4 {[%emt 0:07:23]} axb4 {[%emt 0:14:29]} 16. axb4 {[%emt 0:00:12]} Bf5 {[%emt 0:00:11]} 17. Rb3 {[%emt 0:12:54]} Qc8 {[%emt 0:11:16]} 18. Ne5 {[%emt 0:05:20]} Bxd3 {[%emt 0:06:57]} 19. Qxd3 {[%emt 0:04:03]} Nf5 {[%emt 0:00:44]} 20. Bg5 {[%emt 0:03:10]} Ne4 {[%emt 0:01:54]} 21. Bxe7 {[%emt 0:03:40]} Rxe7 {[%emt 0:00:02]} 22. Rc1 {[%emt 0:02:44]} Qe6 {[%emt 0:21:09]} 23. Ne2 {[%emt 0:23:30]} f6 {[%emt 0:00:37]} 24. Nf3 {[%emt 0:00:44]} g5 {[%emt 0:01:15]} 25. b5 {[%emt 0:00:48]} h5 {[%emt 0:01:45]} 26. bxc6 {[%emt 0:00:29]} bxc6 {[%emt 0:00:01]} 27. Rb6 {[%emt 0:00:22]} Rc7 {[%emt 0:00:30]} 28. Qc2 {[%emt 0:01:28]} Ne7 {[%emt 0:04:03]} 29. Ne1 {[%emt 0:01:03]} Ra3 {[%emt 0:00:46]} 30. Nd3 {[%emt 0:00:44]} Qf5 {[%emt 0:00:36]} 31. Rcb1 {[%emt 0:00:31]} Nxf2 {[%emt 0:00:23]} 32. R1b3 {[%emt 0:00:30]} Ra1+ {[%emt 0:00:16]} 33. Nec1 {[%emt 0:00:25]} Nxd3 {[%emt 0:00:25]} 34. Rxd3 {[%emt 0:00:18]} Rxc1+ {[%emt 0:00:14]} 35. Qxc1 {[%emt 0:00:10]} Qxd3 {[%emt 0:00:06]} 36. Rb8+ {[%emt 0:00:58]} Kg7 {[%emt 0:00:09]} 37. Ra8 {[%emt 0:00:31]} Rb7 {[%emt 0:00:24]} 38. Ra3 {[%emt 0:00:33]} Rb1 {[%emt 0:00:14]} 39. Rxd3 {[%emt 0:00:17]} Rxc1+ {[%emt 0:00:02]} 40. Kf2 {[%emt 0:00:00]} Nf5 {[%emt 0:00:00]} 41. Rb3 {[%emt 0:01:41]} Nd6 {[%emt 0:00:32]} 0-1

[Event "EYCC Girls-U16 2019"]
[Site "Bratislava"]
[Date "2019.08.03"]
[Round "2.8"]
[White "Ilyina, Lada"]
[Black "Diez, Ambre"]
[Result "1-0"]
[ECO "A49"]
[WhiteElo "2048"]
[BlackElo "1908"]
[Annotator "NA"]
[PlyCount "115"]
[EventDate "2019.08.02"]
[EventType "swiss"]
[EventCountry "SVK"]
[SourceTitle "playchess.com"]
[Source "ChessBase"]
[SourceQuality "1"]
[TimeControl "40/5400+30:1800+30"]

1. d4 {[%emt 0:00:00]} Nf6 {[%emt 0:00:00]} 2. Nf3 {[%emt 0:00:00]} g6 {[%emt 0:00:00]} 3. g3 {[%emt 0:00:04]} Bg7 {[%emt 0:00:02]} 4. Bg2 {[%emt 0:00:12]} d6 {[%emt 0:00:34]} 5. Nc3 {[%emt 0:00:50]} O-O {[%emt 0:01:07]} 6. e4 {[%emt 0:04:45]} Nc6 {[%emt 0:01:11]} 7. O-O {[%emt 0:00:14]} e5 {[%emt 0:01:17]} 8. d5 {[%emt 0:02:38]} Ne7 {[%emt 0:00:34]} 9. Nd2 {[%emt 0:05:22]} Nd7 {[%emt 0:06:21]} 10. Nc4 {[%emt 0:04:58]} f5 {[%emt 0:02:14]} 11. f3 {[%emt 0:05:38]} Nf6 {[%emt 0:04:32]} 12. Bd2 {[%emt 0:21:19]} c6 {[%emt 0:16:13]} 13. dxc6 {[%emt 0:07:26]} bxc6 {[%emt 0:00:11]} 14. Re1 {[%emt 0:11:10]} Ba6 {[%emt 0:09:02]} 15. Bf1 {[%emt 0:01:49]} Kh8 {[%emt 0:14:07]} 16. Kh1 {[%emt 0:07:34]} h6 {[%emt 0:15:14]} 17. exf5 {[%emt 0:11:06]} Bxc4 {[%emt 0:06:16]} 18. Bxc4 {[%emt 0:00:12]} Nxf5 {[%emt 0:00:24]} 19. Bd3 {[%emt 0:02:57]} Qd7 {[%emt 0:03:21]} 20. Bxf5 {[%emt 0:01:49]} gxf5 {[%emt 0:02:11]} 21. Be3 {[%emt 0:00:36]} Rg8 {[%emt 0:03:00]} 22. Qd2 {[%emt 0:01:28]} Kh7 {[%emt 0:00:29]} 23. f4 {[%emt 0:01:27]} e4 {[%emt 0:01:22]} 24. Rad1 {[%emt 0:01:33]} Rad8 {[%emt 0:01:15]} 25. Bd4 {[%emt 0:02:54]} Qf7 {[%emt 0:01:49]} 26. Qe2 {[%emt 0:02:07]} Nh5 {[%emt 0:02:14]} 27. Qf2 {[%emt 0:01:07]} Bxd4 {[%emt 0:02:39]} 28. Rxd4 {[%emt 0:00:16]} Rg6 {[%emt 0:01:45]} 29. Red1 {[%emt 0:01:53]} Re6 {[%emt 0:01:07]} 30. Qe3 {[%emt 0:00:59]} Nf6 {[%emt 0:00:45]} 31. Ra4 {[%emt 0:00:18]} Re7 {[%emt 0:01:27]} 32. h3 {[%emt 0:00:20]} d5 {[%emt 0:01:28]} 33. Ne2 {[%emt 0:00:45]} Qh5 {[%emt 0:00:50]} 34. Kg2 {[%emt 0:00:01]} Rde8 {[%emt 0:00:27]} 35. Rxa7 {[%emt 0:00:54]} c5 {[%emt 0:01:13]} 36. Rxe7+ Rxe7 {[%emt 0:00:07]} 37. c3 {[%emt 0:00:40]} Rc7 {[%emt 0:00:51]} 38. Rd2 {[%emt 0:00:55]} Qg6 {[%emt 0:00:12]} 39. a4 {[%emt 0:00:37]} h5 {[%emt 0:00:23]} 40. a5 {[%emt 0:00:14]} h4 {[%emt 0:00:28]} 41. a6 {[%emt 0:30:05]} Qg8 {[%emt 0:03:48]} 42. Kh2 {[%emt 0:00:00]} Nh5 {[%emt 0:08:39]} 43. Rd1 {[%emt 0:00:00]} Rg7 {[%emt 0:03:29]} 44. Qxc5 {[%emt 0:00:00]} Qb8 {[%emt 0:03:43]} 45. Qxd5 {[%emt 0:00:00]} hxg3+ {[%emt 0:01:43]} 46. Kg2 {[%emt 0:00:00]} Nxf4+ {[%emt 0:00:32]} 47. Nxf4 {[%emt 0:00:00]} Qxf4 {[%emt 0:00:09]} 48. Rf1 {[%emt 0:00:00]} Qe3 {[%emt 0:02:02]} 49. Qxf5+ {[%emt 0:00:00]} Kg8 {[%emt 0:01:33]} 50. Qd5+ {[%emt 0:00:02]} Kh7 {[%emt 0:00:28]} 51. Qd1 {[%emt 0:00:38]} Qb6 {[%emt 0:02:25]} 52. Qh5+ {[%emt 0:00:47]} Kg8 {[%emt 0:00:41]} 53. Qd5+ {[%emt 0:00:46]} Kh7 {[%emt 0:01:08]} 54. Qxe4+ {[%emt 0:00:07]} Kg8 {[%emt 0:00:09]} 55. Qc4+ {[%emt 0:01:29]} Kh7 {[%emt 0:00:59]} 56. b4 {[%emt 0:00:37]} Rc7 {[%emt 0:01:49]} 57. Qe4+ {[%emt 0:01:56]} Kg8 {[%emt 0:01:04]} 58. Rf5 {[%emt 0:01:27]} 1-0